Cogmind - Beta 9.6 @@@ ROGUE MODE // 2020.08.03 @ 19:55:20 Player: josiah Result: Destroyed by S-43 Plague with Heavy Machine Gun Performance ------------- Evolutions (8) 4000 Regions Visited (25) 5000 Robots Destroyed (300) 1500 Value Destroyed (13518) 13518 Prototype IDs (22) 440 Alien Tech Used (0) 0 Bonus (2288) 2288 TOTAL SCORE: 26746 Bonus ------- High Alert Combat Kills 881 Follower Combat Kills 208 Entered Garrisons 200 Used RIF Installer 500 Aligned with FarCom 300 Met Data Miner 300 Friendly Fire -101 Cogmind --------- Core Integrity 0/1450 Matter 281/300 Energy 99/100 System Corruption 54% Temperature Cool (0) Movement Core (50) Location -2/Research Parts ------- > --- POWER (2) -------- (None) > --- PROPULSION (4) --- (None) > --- UTILITY (11) ----- Transport Network Coupler Advanced Targeting Computer Advanced Targeting Computer Advanced Target Analyzer > --- WEAPON (6) ------- (None) > --- INVENTORY (4) ---- Large Storage Unit High-capacity Storage Unit Advanced Thermal Shield Advanced Thermal Shield Peak State ------------ > --- POWER ------------ Particle Reactor Light Quantum Reactor > --- PROPULSION ------- Myomer Leg Myomer Leg Myomer Leg Myomer Leg > --- UTILITY ---------- Advanced Heat Sink Advanced Cooling System High-capacity Storage Unit Advanced Energy Well Improved Targeting Computer Advanced Targeting Computer Advanced Targeting Computer Advanced Target Analyzer Advanced Phase Shifter Centrium Light Armor Plating Advanced Focal Shield > --- WEAPON ----------- KE Penetrator KE Penetrator KE Penetrator Heavy Gauss Cannon Guided Micro-nuke Launcher > --- INVENTORY -------- Light Quantum Reactor Myomer Leg Biometal Leg Biometal Leg Advanced Heat Sink High-capacity Storage Unit Advanced Targeting Computer Advanced Phase Shifter Centrium Light Armor Plating Advanced Thermal Shield Advanced Hardlight Generator Heavy Gauss Cannon [Rating: 158] Favorites ----------- Power Neutrino Core Engine Improved Deuterium Engine Power Core Neutrino Core Reactor Light Quantum Reactor Propulsion Carbon-fiber Leg Leg Carbon-fiber Leg Wheel Wheel Hover Unit Improved Antigrav System Utility Large Storage Unit Device Advanced Heat Sink Storage Large Storage Unit Processor Improved Targeting Computer Hackware Relay Coupler [NC] Protection Improved Medium Armor Plating Weapon KE Penetrator Energy Gun Medium Laser Energy Cannon Plasma Cannon Ballistic Gun KE Penetrator Ballistic Cannon Tri-rail Accelerator Launcher Guided Micro-nuke Launcher Special Weapon Enhanced Flamer Slashing Weapon Centrium Greatsword Special Melee Weapon Improved Datajack Build | -11 -10 -10 -9 -9 -9 -8 -8 -8 -8 -7 -7 -7 -7 -7 -7 -6 -6 -6 -6 -6 -5 -5 -4 -3 -2 ------- Run | Scr Mat Min Mat Min Exi Min Mat Gar Mat Fac Was Fac Low Low Dat Pro Fac Low Low Zio Pro Fac Fac Res Res Slots Evolved 16 | . . . 2 . . . 2 . . 2 . . . . . . 2 . . . . 2 2 2 2 Power 1 | . . . . . . . . . . . . . . . . . 1 . . . . . . . . Propulsion 2 | . . . . . . . . . . 1 . . . . . . . . . . . 1 . . . Utility 9 | . . . 1 . . . 1 . . 1 . . . . . . 1 . . . . 1 2 1 1 Weapon 4 | . . . 1 . . . 1 . . . . . . . . . . . . . . . . 1 1 Parts Attached 267 | 6 2 4 5 4 2 7 10 3 2 14 2 12 7 2 . 5 15 10 4 . 13 39 17 9 73 Power 31 | 1 . . . . . 2 1 . . 2 . 1 1 . . . 2 3 . . 2 4 . 2 10 Engine 9 | 1 . . . . . 2 1 . . 2 . . 1 . . . 1 . . . . 1 . . . Core 10 | . . . . . . . . . . . . 1 . . . . 1 3 . . 2 3 . . . Reactor 12 | . . . . . . . . . . . . . . . . . . . . . . . . 2 10 Propulsion 57 | 2 . . . 1 . 2 . . 2 3 2 4 1 . . 1 3 1 1 . 3 12 4 . 15 Treads . | . . . . . . . . . . . . . . . . . . . . . . . . . . Leg 40 | . . . . . . 2 . . 2 3 2 1 1 . . . 1 1 . . 3 7 4 . 13 Wheel 15 | 2 . . . 1 . . . . . . . 3 . . . 1 2 . 1 . . 5 . . . Hover 2 | . . . . . . . . . . . . . . . . . . . . . . . . . 2 Flight . | . . . . . . . . . . . . . . . . . . . . . . . . . . Utility 98 | 1 2 4 2 2 2 2 4 3 . 3 . 5 1 2 . 4 5 4 2 . 1 13 11 4 21 Device 45 | . . 2 1 1 1 1 . . . . . 2 . . . 2 3 1 1 . 1 5 9 2 13 Storage 10 | 1 1 . . . . . 2 1 . 1 . . . . . . . . 1 . . . . 2 1 Processor 17 | . . . 1 . . . 1 2 . 1 . . . . . 2 2 . . . . 2 1 . 5 Hackware 1 | . . . . . . . . . . 1 . . . . . . . . . . . . . . . Protection 25 | . 1 2 . 1 1 1 1 . . . . 3 1 2 . . . 3 . . . 6 1 . 2 Artifact . | . . . . . . . . . . . . . . . . . . . . . . . . . . Weapon 81 | 2 . . 3 1 . 1 5 . . 6 . 2 4 . . . 5 2 1 . 7 10 2 3 27 Energy Gun 6 | 1 . . 1 . . . . . . . . . . . . . 1 1 . . . 2 . . . Energy Cannon 3 | . . . . . . . . . . . . . . . . . . . . . . 2 . . 1 Ballistic Gun 51 | 1 . . 2 1 . 1 4 . . 4 . 2 4 . . . 4 . . . 7 5 2 3 11 Ballistic Cannon 6 | . . . . . . . . . . . . . . . . . . . . . . 1 . . 5 Launcher 5 | . . . . . . . . . . . . . . . . . . . . . . . . . 5 Special Weapon 2 | . . . . . . . . . . 1 . . . . . . . 1 . . . . . . . Impact Weapon . | . . . . . . . . . . . . . . . . . . . . . . . . . . Slashing Weapon 7 | . . . . . . . 1 . . . . . . . . . . . 1 . . . . . 5 Piercing Weapon . | . . . . . . . . . . . . . . . . . . . . . . . . . . Special Melee Weapon 1 | . . . . . . . . . . 1 . . . . . . . . . . . . . . . Unidentified Prototypes 13 | . . 1 . . 1 . . . . 1 . 1 . . . . . 1 . . . 3 1 1 3 Parts Lost 123 | . . . . 2 . 4 . . . 5 2 . 2 . . 5 3 8 3 1 16 11 . . 61 Power 12 | . . . . . . 1 . . . . . . . . . . . 1 . 1 2 . . . 7 Propulsion 35 | . . . . 1 . 2 . . . 2 2 . 1 . . 2 1 3 . . 4 3 . . 14 Utility 31 | . . . . . . 1 . . . . . . 1 . . 3 . 1 1 . 6 3 . . 15 Weapon 45 | . . . . 1 . . . . . 3 . . . . . . 2 3 2 . 4 5 . . 25 Highest Loss Streak 24 | . . . . 2 . 4 . . . 3 2 . 2 . . 2 1 7 2 1 9 5 . . 24 Average Slot Usage (%) 85 | . 99 100 92 99 99 93 94 100 100 80 54 70 77 100 100 95 92 80 74 77 45 85 91 88 85 Engine 4 | . 14 14 11 11 11 9 9 9 9 7 3 . 2 7 7 7 6 2 . . . 1 . . . Core 3 | . . . . . . . . . . . . 6 4 . . . 4 8 13 10 4 7 10 5 . Reactor 1 | . . . . . . . . . . . . . . . . . . . . . . . . 2 6 Leg 11 | . . . . . . 6 18 18 18 22 16 2 3 7 7 4 1 5 6 6 4 14 20 19 14 Wheel 6 | . 28 28 22 21 22 14 . . . . . 17 15 15 15 14 15 6 3 6 1 5 . . . Device 10 | . . 6 2 9 6 . . . . . . 12 15 15 15 14 19 20 20 20 12 7 28 24 13 Storage 8 | . 14 14 11 11 11 11 17 19 27 28 18 . . . . . . . 2 6 6 . . 1 7 Processor 8 | . . . 3 11 11 11 9 16 9 3 . . . . . 14 13 13 8 6 1 9 10 9 17 Hackware 1 | . . . . . . . . . . 4 7 7 . . . . . . . . . . . . . Protection 7 | . 13 7 8 1 4 7 8 . . . . 14 22 23 23 8 6 5 6 6 1 17 5 4 3 Energy Gun 1 | . 14 14 11 8 . . . . . . . . . . . . 2 5 1 . . 1 . . . Ballistic Gun 15 | . 14 14 22 24 33 33 27 36 36 10 7 6 11 30 30 30 21 7 1 . 8 10 10 15 12 Ballistic Cannon 1 | . . . . . . . . . . . . . . . . . . . . . . 3 5 3 4 Naked Turns . | . . . . . . . . . . . . . . . . . . . . . . . . . . Heaviest Build 147 | 13 28 28 31 32 32 32 68 74 74 90 89 38 44 41 41 41 43 49 48 45 35 83 94 144 147 Greatest Support 106 | 20 20 20 20 20 20 20 20 20 32 47 51 36 36 26 26 26 42 42 16 16 35 86 106 106 106 Greatest Overweight (x) 23 | . 1 1 1 3 1 2 3 3 3 2 5 3 1 1 1 1 3 3 3 2 5 6 1 1 23 Average Overweight (x) 1 | . . 1 1 1 1 1 1 2 2 1 . 1 1 1 1 1 . 2 2 2 1 . . . . Largest Inventory Capacity 28 | 6 10 10 10 10 10 10 16 22 22 28 28 4 4 4 4 4 4 4 4 4 4 4 4 12 12 Average Capacity 10 | 4 7 10 10 10 10 10 13 16 22 26 19 4 4 4 4 4 4 4 4 4 4 4 4 7 11 Most Carried 28 | 3 8 10 10 10 10 10 16 18 22 28 27 4 4 4 4 4 4 4 4 4 4 4 4 8 12 Average Carried 9 | 1 5 9 9 9 9 9 11 16 20 24 18 3 3 4 4 4 4 4 4 4 3 3 3 4 9 Final Capacity 28 | 6 10 10 10 10 10 10 16 22 22 28 4 4 4 4 4 4 4 4 4 4 4 4 4 12 4 Final Carried 27 | 3 8 10 10 10 10 10 16 18 22 27 4 4 4 4 4 4 4 4 4 4 4 4 4 8 4 Class Distribution -------------------- 20% | Tank 14% | Scavenger-Gunner 11% | Scavenger-Mutant 10% | Scavenger-Tank 9% | Bothacker-Skirmisher 9% | Skirmisher 7% | Mutant 4% | Gunner Dominant Class ---------------- Mutant | -10/Materials Mutant | -10/Mines Tank | -9/Materials Skirmisher | -9/Mines Skirmisher | -9/Exiles Skirmisher | -8/Mines Skirmisher | -8/Materials Gunner | -8/Garrison Hauler-Skirmisher | -8/Materials Bothacker-Skirmisher | -7/Factory Bothacker-Skirmisher | -7/Waste Tank | -7/Factory Scavenger-Tank | -7/Lower Caves Scavenger-Tank | -7/Lower Caves Scavenger-Tank | -7/Data Miner Scavenger-Gunner | -6/Proximity Caves Scavenger-Gunner | -6/Factory Scavenger-Gunner | -6/Lower Caves Scavenger-Mutant | -6/Lower Caves Scavenger-Mutant | -6/Zion Scavenger-Mutant | -5/Proximity Caves Scavenger-Tank | -5/Factory Tank | -4/Factory Tank | -3/Research Scavenger-Gunner | -2/Research Resources | -11 -10 -10 -9 -9 -9 -8 -8 -8 -8 -7 -7 -7 -7 -7 -7 -6 -6 -6 -6 -6 -5 -5 -4 -3 -2 ----------- Run | Scr Mat Min Mat Min Exi Min Mat Gar Mat Fac Was Fac Low Low Dat Pro Fac Low Low Zio Pro Fac Fac Res Res Matter Collected 11087 | 238 32 63 44 111 . 259 . 316 274 1014 . 792 901 174 . 355 316 240 99 . 422 925 640 825 3047 Remotely . | . . . . . . . . . . . . . . . . . . . . . . . . . . Salvage Created 14455 | . . 34 129 83 . 238 . 472 457 1252 . 996 1306 270 . 423 311 536 96 . 737 1194 921 894 4106 Parts 688 | . . 2 7 7 . 17 . 22 19 66 . 53 59 15 . 25 18 24 1 . 30 65 44 40 174 Haulers Intercepted 6 | . . . . . . . . . . . . 1 . . . . . 1 . . . 1 . . 3 Recyclers Shooed 11 | . . . . . . . . . . . . . . . . . 1 . . . . 2 1 . 7 Parts Field Recycled . | . . . . . . . . . . . . . . . . . . . . . . . . . . Retrieved Matter . | . . . . . . . . . . . . . . . . . . . . . . . . . . Parts Self-Destructed 140 | . . . . . . . . . . . . . 51 15 . 25 . 20 3 . 26 . . . . Prevented 1 | . . . . . . . . . . . . . . . . 1 . . . . . . . . . Kills | -11 -10 -10 -9 -9 -9 -8 -8 -8 -8 -7 -7 -7 -7 -7 -7 -6 -6 -6 -6 -6 -5 -5 -4 -3 -2 ------- Run | Scr Mat Min Mat Min Exi Min Mat Gar Mat Fac Was Fac Low Low Dat Pro Fac Low Low Zio Pro Fac Fac Res Res Combat Hostiles Destroyed 238 | . . 3 2 4 . 9 . 13 9 17 . 20 27 7 . 8 7 8 2 . 13 15 14 12 48 Melee 3 | . . . . . . . . . . . . . . . . . . . . . . . . . 3 Guns 198 | . . 3 2 4 . 9 . 13 9 17 . 20 27 7 . 8 7 8 1 . 13 9 3 11 27 Cannons 33 | . . . . . . . . . . . . . . . . . . . 1 . . 4 11 1 16 AOE 4 | . . . . . . . . . . . . . . . . . . . . . . 2 . . 2 Classes Destroyed 15 | . . 1 2 1 . 2 . 1 . 2 . 1 2 . . 1 . 1 . . . . . . 1 Worker 18 | . . . . 1 . . . . . 1 . 1 . . . . . . . . . 4 1 . 10 Builder 14 | . . . . . . . . . . 1 . . . . . . . . . . . 3 1 3 6 Hauler 6 | . . . . . . . . . . . . 1 . . . . . 1 . . . 1 . . 3 Recycler 14 | . . . . . . 1 . . . 4 . . . . . . . . . . . 4 1 . 4 Minesweeper 2 | . . . . . . . . . . . . . . . . 2 . . . . . . . . . Operator 1 | . . . . . . . . . . . . . . . . . . . . . . . . . 1 Watcher 6 | . . . 1 . . . . . . 2 . 1 . . . . . . . . . 1 . . 1 Swarmer 59 | . . 3 . 4 . 8 . 6 . 4 . 6 6 3 . 3 3 3 . . 5 1 . . 4 Grunt 85 | . . . . . . . . 5 6 2 . 13 9 3 . 3 1 5 1 . 6 4 5 7 15 Brawler 4 | . . . . . . . . . . . . . 3 . . . . . 1 . . . . . . Duelist 6 | . . . . . . . . . . . . . 3 1 . . . . . . . 2 . . . Sentry 19 | . . . 2 . . . . 2 2 5 . . 1 . . . 2 . . . . . 2 2 1 Hunter 19 | . . . . . . 1 . . 1 2 . . 2 . . 2 . . . . 2 . . . 9 Programmer 44 | . . . . . . . . . . 4 . 1 1 . . . 1 . . . . 8 7 3 19 Samaritan 1 | . . . . . . . . . . . . . . . . . . 1 . . . . . . . Wasp 1 | . . . . . . . . . . . . . 1 . . . . . . . . . . . . Thug 1 | . . . . . . . . . . . . . 1 . . . . . . . . . . . . Best Kill Streak 11 | . . 3 1 5 . 4 . 5 3 6 . 6 11 3 . 4 3 5 2 . 5 8 5 8 11 Combat Bots Only 11 | . . 3 1 4 . 4 . 5 3 4 . 5 11 3 . 4 3 5 2 . 5 4 4 5 8 Max Kills in Single Turn 5 | . . 2 1 2 . 2 . 2 2 3 . 2 3 2 . 1 1 1 1 . 1 5 2 3 2 Gunslinging 1 | . . 1 . 1 . 1 . 1 1 . . . . 1 . . . . . . . . . . . Exploded 2 | . . . . . . . . . . . . . . . . . . . . . . 2 . . 1 Melee 1 | . . . . . . . . . . . . . . . . . . . . . . . . . 1 Uniques/NPCs Destroyed . | . . . . . . . . . . . . . . . . . . . . . . . . . . Combat | -11 -10 -10 -9 -9 -9 -8 -8 -8 -8 -7 -7 -7 -7 -7 -7 -6 -6 -6 -6 -6 -5 -5 -4 -3 -2 -------- Run | Scr Mat Min Mat Min Exi Min Mat Gar Mat Fac Was Fac Low Low Dat Pro Fac Low Low Zio Pro Fac Fac Res Res Damage Taken 19746 | . . 80 118 215 . 446 . 206 342 1018 374 348 443 302 . 748 358 702 195 189 1614 2027 557 668 8796 Core 3055 | . . . 14 27 . 74 . 34 20 106 118 . 38 63 . 50 61 102 38 24 448 265 89 15 1469 Absorbed by Shields 2182 | . . . . . . . . . . . . . . . . . . . . . . 40 362 675 1105 Core Remaining (%) 76 | 100 . 100 . . . 71 . . 90 . . . . . . 46 . . . . 20 73 92 98 . Volleys Fired 602 | . . 5 5 7 . 21 . 14 15 66 1 39 51 11 . 24 23 24 9 . 35 55 34 33 130 Largest 6 | . . 2 3 3 . 3 . 4 4 4 1 1 1 4 . 4 4 4 2 . 2 3 3 5 6 Hottest 282 | . . 70 93 99 . 69 . 112 112 112 60 60 60 92 . 92 124 177 108 . 80 126 126 165 282 Shots Fired 1563 | . . 10 15 21 . 63 . 50 60 101 1 38 53 45 . 95 67 48 17 . 54 119 84 136 486 Gun 1332 | . . 10 15 21 . 63 . 50 60 99 1 38 53 45 . 95 67 45 8 . 50 88 50 116 358 Cannon 205 | . . . . . . . . . . . . . . . . . . . . . . 31 34 20 120 Launcher 8 | . . . . . . . . . . . . . . . . . . . . . . . . . 8 Special 18 | . . . . . . . . . . 2 . . . . . . . 3 9 . 4 . . . . Kinetic 1501 | . . 5 10 17 . 63 . 50 60 99 1 38 53 45 . 95 61 34 8 . 50 115 84 136 477 Thermal 45 | . . 5 5 4 . . . . . . . . . . . . . 14 9 . 4 4 . . . Explosive 8 | . . . . . . . . . . . . . . . . . . . . . . . . . 8 Electromagnetic 7 | . . . . . . . . . . . . . . . . . 6 . . . . . . . 1 Robot Hit Streak 39 | . . 4 6 4 . 5 . 15 12 25 2 12 8 30 . 39 22 16 11 . 12 16 10 12 29 Robot Miss Streak 10 | . . 2 1 3 . 10 . 1 2 9 1 4 4 6 . 5 2 5 2 . 3 3 3 5 7 Penetration Max 1 | . . . . . . . . 1 1 . . . . . . . . . . . 1 1 1 . 1 Secondary Targets 30 | . . 1 . 2 . 3 . 4 2 . . . . 2 . 4 . 1 . . 2 . . 1 8 Max Gunslinging Chain 2 | . . 1 . 2 . 1 . 1 1 . . . . 1 . 1 . 1 . . 1 . . 1 1 Shots Hit Robots 1108 | . . 6 10 10 . 25 . 29 35 89 1 38 50 33 . 61 54 41 16 . 56 89 60 79 326 Core Hits 629 | . . 3 6 5 . 13 . 18 16 42 1 39 49 16 . 29 20 48 13 . 37 50 35 35 154 Critical Hits 96 | . . . . . . . . 1 2 . . . . . . . . . . . . 7 11 19 56 Critical Kills 37 | . . . . . . . . 1 1 . . . . . . . . . . . . 3 5 8 19 Critical Parts Destroyed 57 | . . . . . . . . . 1 . . . . . . . . . . . . 4 6 10 36 Melee Attacks 38 | . . . . . . . . . . 1 . . . . . . . . . . 12 . . . 25 Impact . | . . . . . . . . . . . . . . . . . . . . . . . . . . Slashing 37 | . . . . . . . . . . . . . . . . . . . . . 12 . . . 25 Piercing . | . . . . . . . . . . . . . . . . . . . . . . . . . . Sneak Attacks 2 | . . . . . . . . . . 1 . . . . . . . . . . . . . . 1 Combat Hostiles . | . . . . . . . . . . . . . . . . . . . . . . . . . . Follow-up Attacks 7 | . . . . . . . . . . . . . . . . . . . . . . . . . 7 Damage Inflicted 34982 | . . 66 131 136 . 356 . 756 742 3067 100 1901 2821 495 . 919 864 913 190 . 1826 4167 2284 2174 11074 Guns 25193 | . . 66 131 136 . 356 . 756 742 3067 100 1901 2821 495 . 919 864 913 155 . 961 1643 1003 1762 6402 Cannons 5666 | . . . . . . . . . . . . . . . . . . . . . . 1609 1227 412 2418 Explosions 2237 | . . . . . . . . . . . . . . . . . . . . . . 915 54 . 1268 Melee 1802 | . . . . . . . . . . . . . . . . . . . . . 820 . . . 982 Ramming 4 | . . . . . . . . . . . . . . . . . . . . . . . . . 4 Kinetic 30371 | . . 29 68 107 . 356 . 756 742 3067 100 1901 2821 495 . 919 791 777 155 . 961 3109 2230 2174 8813 Thermal 1403 | . . 37 63 29 . . . . . . . . . . . . . 136 35 . 45 1058 . . . Explosive 1322 | . . . . . . . . . . . . . . . . . . . . . . . 54 . 1268 Electromagnetic 80 | . . . . . . . . . . . . . . . . . 73 . . . . . . . 7 Impact . | . . . . . . . . . . . . . . . . . . . . . . . . . . Slashing 1802 | . . . . . . . . . . . . . . . . . . . . . 820 . . . 982 Piercing . | . . . . . . . . . . . . . . . . . . . . . . . . . . Highest Corruption 54 | . . . . . . . . . . 2 2 5 5 5 5 5 . . 8 8 . 10 4 4 54 Average Corruption 6 | . . . . . . . . . . 1 2 3 5 5 5 5 . . 7 8 . 5 3 3 16 Corruption Purged . | . . . . . . . . . . . . . . . . . . . . . . . . . . Effects 385 | . . . . . . . . . . 19 3 18 22 14 2 20 . . 9 2 . 56 16 8 196 Message Errors 65 | . . . . . . . . . . 8 . 4 4 3 1 2 . . 1 1 . 18 4 1 18 Matter Fused 59 | . . . . . . . . . . . . 5 5 4 1 5 . . 3 . . 10 . 5 21 Heat Flow Errors 31 | . . . . . . . . . . 1 . . 2 2 . 4 . . 3 1 . 3 2 . 13 Energy Discharges 37 | . . . . . . . . . . 4 1 2 2 1 . . . . . . . 7 4 . 16 Parts Rejected 5 | . . . . . . . . . . . . . . . . . . . . . . 1 1 . 3 Data Loss (minor) 36 | . . . . . . . . . . 4 2 4 3 1 . 1 . . 1 . . 6 1 1 12 Data Loss (major) 8 | . . . . . . . . . . . . . 2 . . 1 . . . . . 1 . . 4 Misfires 10 | . . . . . . . . . . . . . 2 1 . . . . . . . 1 . . 6 Alerts 1 | . . . . . . . . . . . . . . . . . . . . . . . . . 1 Misdirections 25 | . . . . . . . . . . . . . . . . . . . . . . 2 . . 23 Targeting Errors 90 | . . . . . . . . . . 1 . 2 2 2 . 6 . . 1 . . 5 4 1 66 Weapon Failures 18 | . . . . . . . . . . 1 . 1 . . . 1 . . . . . 2 . . 13 Overload Shots . | . . . . . . . . . . . . . . . . . . . . . . . . . . Overflow Damage 691 | . . . . . . . . . . . . . . . . . . . . . 212 241 34 . 204 Projectiles 185 | . . . . . . . . . . . . . . . . . . . . . 4 109 34 . 38 Explosions 168 | . . . . . . . . . . . . . . . . . . . . . . 132 . . 36 Melee 338 | . . . . . . . . . . . . . . . . . . . . . 208 . . . 130 Knockbacks 61 | . . . . . . . . . . . . . . . . . . . . . . 16 15 7 23 Impact . | . . . . . . . . . . . . . . . . . . . . . . . . . . Kinetic 57 | . . . . . . . . . . . . . . . . . . . . . . 15 15 6 21 Secondary 4 | . . . . . . . . . . . . . . . . . . . . . . 1 . 1 2 Self-Inflicted Damage 801 | . . . . . . . . . . . . . . . . . . . . . . 635 85 . 81 Shots 15 | . . . . . . . . . . . . . . . . . . . . . . 10 1 . 4 Rammed 1 | . . . . . . . . . . . . . . . . . . . . . . . . . 1 Targets Rammed 1 | . . . . . . . . . . . . . . . . . . . . . . . . . 1 Kicked . | . . . . . . . . . . . . . . . . . . . . . . . . . . Crushed . | . . . . . . . . . . . . . . . . . . . . . . . . . . Highest Temperature 468 | . . 90 69 97 . 24 . 219 228 396 26 159 390 180 . 215 63 228 250 76 20 223 173 53 468 Average Temperature 73 | . . 45 32 55 . 10 . 72 79 88 26 56 120 29 . 62 27 78 75 43 11 47 72 14 117 Received Heat Transfer 2047 | . . . 36 . . . . 81 162 219 . 81 108 54 . 63 54 228 63 . 288 99 48 147 316 Effects 8 | . . . . . . . . . . 1 . . 3 . . . . . . . . . . . 4 Shutdowns 1 | . . . . . . . . . . . . . . . . . . . . . . . . . 1 Energy Bleed 3 | . . . . . . . . . . . . . . . . . . . . . . . . . 3 Interference 3 | . . . . . . . . . . 1 . . 2 . . . . . . . . . . . . Damage (minor) 1 | . . . . . . . . . . . . . 1 . . . . . . . . . . . . Siege Activations . | . . . . . . . . . . . . . . . . . . . . . . . . . . Robots Corrupted . | . . . . . . . . . . . . . . . . . . . . . . . . . . Combat Hostiles . | . . . . . . . . . . . . . . . . . . . . . . . . . . Parts Fried 2 | . . . . . . . . . . . . . . . . 1 1 . . . . . . . . Impact Corruptions 2 | . . . . . . . . . . . . . . . . . . . . . . 2 . . . Robots Melted . | . . . . . . . . . . . . . . . . . . . . . . . . . . Combat Hostiles . | . . . . . . . . . . . . . . . . . . . . . . . . . . Parts Melted 4 | . . 1 . . . . . . . . . . . . . . . 1 . . . 2 . . . Heat Transferred 2037 | . . 111 185 74 . . . . . . . . . . . . . 259 240 . 320 848 . . . Parts Sabotaged . | . . . . . . . . . . . . . . . . . . . . . . . . . . Parts Stolen . | . . . . . . . . . . . . . . . . . . . . . . . . . . Parts Stripped . | . . . . . . . . . . . . . . . . . . . . . . . . . . Power Chain Reactions . | . . . . . . . . . . . . . . . . . . . . . . . . . . Missiles Intercepted . | . . . . . . . . . . . . . . . . . . . . . . . . . . Alert | -11 -10 -10 -9 -9 -9 -8 -8 -8 -8 -7 -7 -7 -7 -7 -7 -6 -6 -6 -6 -6 -5 -5 -4 -3 -2 ------- Run | Scr Mat Min Mat Min Exi Min Mat Gar Mat Fac Was Fac Low Low Dat Pro Fac Low Low Zio Pro Fac Fac Res Res Peak Influence 798 | . 24 79 102 129 . 95 15 395 473 220 95 336 . . . . 216 . . . . 571 499 355 798 Average Influence 206 | . 21 15 78 61 . 28 . 162 295 77 78 168 . . . . 74 . . . . 267 359 196 428 Maximum Alert Level 3 | . . . . . . . . 1 2 1 . 1 . . . . 1 . . . . 2 2 1 3 Low Security (%) 59 | 100 100 100 100 100 . 100 100 71 21 91 100 56 . . . . 92 . . . . 40 6 75 21 Level 1 23 | . . . . . . . . 28 52 8 . 43 . . . . 7 . . . . 25 49 24 34 Level 2 14 | . . . . . . . . . 26 . . . . . . . . . . . . 34 44 . 26 Level 3 3 | . . . . . . . . . . . . . . . . . . . . . . . . . 17 Level 4 . | . . . . . . . . . . . . . . . . . . . . . . . . . . Level 5 . | . . . . . . . . . . . . . . . . . . . . . . . . . . High Security . | . . . . . . . . . . . . . . . . . . . . . . . . . . Max Security . | . . . . . . . . . . . . . . . . . . . . . . . . . . Squads Dispatched 42 | . . . . . . . . . 1 6 . 5 . . . . 2 . . . . 5 7 7 9 Investigation 3 | . . . . . . . . . 1 1 . . . . . . . . . . . . . 1 . Extermination 20 | . . . . . . . . . . 4 . 1 . . . . 1 . . . . 4 3 1 6 Reinforcement 8 | . . . . . . . . . . 1 . 1 . . . . 1 . . . . . . 2 3 Assault 2 | . . . . . . . . . . . . . . . . . . . . . . 1 1 . . Garrison 9 | . . . . . . . . . . . . 3 . . . . . . . . . . 3 3 . Intercept . | . . . . . . . . . . . . . . . . . . . . . . . . . . Construction Impeded 3 | . . . . . . . . . . . . . . . . . . . . . . . . 2 1 Haulers Reinforced 1 | . . . . . . . . . . . . . . . . . . . . . . . . . 1 Stealth | -11 -10 -10 -9 -9 -9 -8 -8 -8 -8 -7 -7 -7 -7 -7 -7 -6 -6 -6 -6 -6 -5 -5 -4 -3 -2 --------- Run | Scr Mat Min Mat Min Exi Min Mat Gar Mat Fac Was Fac Low Low Dat Pro Fac Low Low Zio Pro Fac Fac Res Res Distress Signals 18 | . . . 1 . . . 1 . 2 2 . 5 . . . . . . . . . 2 . 1 4 Communications Jammed . | . . . . . . . . . . . . . . . . . . . . . . . . . . Distress Signals . | . . . . . . . . . . . . . . . . . . . . . . . . . . Times Spotted 347 | . . 3 4 4 . 10 4 13 14 32 6 31 30 10 . 10 13 8 2 2 15 23 20 18 75 Peak Tracking Total 11 | . 1 3 2 4 . 4 5 5 3 3 6 5 11 4 . 4 4 5 2 2 5 6 5 6 7 Tactical Retreats 19 | . . . . . . 1 . . . 5 . 4 1 2 . . . . . . . 2 . . 4 Traps | -11 -10 -10 -9 -9 -9 -8 -8 -8 -8 -7 -7 -7 -7 -7 -7 -6 -6 -6 -6 -6 -5 -5 -4 -3 -2 ------- Run | Scr Mat Min Mat Min Exi Min Mat Gar Mat Fac Was Fac Low Low Dat Pro Fac Low Low Zio Pro Fac Fac Res Res Traps Triggered 19 | . . . . . . . . 2 1 5 . 3 . . . . 1 . . . . 3 1 . 3 Indirectly . | . . . . . . . . . . . . . . . . . . . . . . . . . . Trap Hack Attempts . | . . . . . . . . . . . . . . . . . . . . . . . . . . Triggered . | . . . . . . . . . . . . . . . . . . . . . . . . . . Disarmed . | . . . . . . . . . . . . . . . . . . . . . . . . . . Reprogrammed . | . . . . . . . . . . . . . . . . . . . . . . . . . . Reused . | . . . . . . . . . . . . . . . . . . . . . . . . . . Traps Extracted . | . . . . . . . . . . . . . . . . . . . . . . . . . . Installed . | . . . . . . . . . . . . . . . . . . . . . . . . . . Triggered 2 | . . . . . . . . . . . . . . . . 2 . . . . . . . . . Machines | -11 -10 -10 -9 -9 -9 -8 -8 -8 -8 -7 -7 -7 -7 -7 -7 -6 -6 -6 -6 -6 -5 -5 -4 -3 -2 ---------- Run | Scr Mat Min Mat Min Exi Min Mat Gar Mat Fac Was Fac Low Low Dat Pro Fac Low Low Zio Pro Fac Fac Res Res Machines Disabled 33 | . . . . 1 . . . 2 2 1 . 2 . . . . . . . . . 18 3 . 4 Max in Single Turn 6 | . . . . 1 . . . 1 1 1 . 1 . . . . . . . . . 6 1 . 1 Garrison Relay 2 | . . . . . . . . 2 . . . . . . . . . . . . . . . . . Machines Sabotaged . | . . . . . . . . . . . . . . . . . . . . . . . . . . Garrisons Compromised . | . . . . . . . . . . . . . . . . . . . . . . . . . . Overloaded Fab Kills . | . . . . . . . . . . . . . . . . . . . . . . . . . . Fab Network Shutdowns . | . . . . . . . . . . . . . . . . . . . . . . . . . . Hacking | -11 -10 -10 -9 -9 -9 -8 -8 -8 -8 -7 -7 -7 -7 -7 -7 -6 -6 -6 -6 -6 -5 -5 -4 -3 -2 --------- Run | Scr Mat Min Mat Min Exi Min Mat Gar Mat Fac Was Fac Low Low Dat Pro Fac Low Low Zio Pro Fac Fac Res Res Machines Accessed 22 | . 4 . 1 . 3 . 1 . . 3 . . 1 . 4 . 1 . . . . . 1 1 2 Terminals 12 | . 4 . 1 . . . . . . 3 . . . . . . 1 . . . . . 1 1 1 Fabricators . | . . . . . . . . . . . . . . . . . . . . . . . . . . Repair Stations . | . . . . . . . . . . . . . . . . . . . . . . . . . . Recycling Units 1 | . . . . . . . . . . . . . . . . . . . . . . . . . 1 Scanalyzers . | . . . . . . . . . . . . . . . . . . . . . . . . . . Garrison Access 1 | . . . . . . . 1 . . . . . . . . . . . . . . . . . . Total Hacks 88 | . 13 . 4 . 25 . 1 . . 6 . . 1 . 28 . 2 . . . . . 2 1 5 Successful 69 | . 9 . 2 . 25 . 1 . . . . . 1 . 28 . 1 . . . . . 1 . 1 Failed 19 | . 4 . 2 . . . . . . 6 . . . . . . 1 . . . . . 1 1 4 Catastrophic 6 | . 1 . 1 . . . . . . 2 . . . . . . . . . . . . 1 1 . Database Lockouts . | . . . . . . . . . . . . . . . . . . . . . . . . . . Manual 25 | . 13 . 4 . 1 . . . . 6 . . . . . . 1 . . . . . . . . Terminals 30 | . 13 . 4 . . . . . . 6 . . . . . . 2 . . . . . 2 1 2 Fabricators . | . . . . . . . . . . . . . . . . . . . . . . . . . . Repair Stations . | . . . . . . . . . . . . . . . . . . . . . . . . . . Recycling Units 3 | . . . . . . . . . . . . . . . . . . . . . . . . . 3 Scanalyzers . | . . . . . . . . . . . . . . . . . . . . . . . . . . Garrison Access 1 | . . . . . . . 1 . . . . . . . . . . . . . . . . . . Terminal Hacks 58 | . 3 . . . 25 . . . . . . . 1 . 28 . . . . . . . 1 . . Record 36 | . . . . . 25 . . . . . . . . . 11 . . . . . . . . . . Part Schematic 6 | . . . . . . . . . . . . . . . 6 . . . . . . . . . . Robot Schematic 8 | . . . . . . . . . . . . . . . 8 . . . . . . . . . . Prototype ID Bank 3 | . . . . . . . . . . . . . . . 3 . . . . . . . . . . Open Door 1 | . . . . . . . . . . . . . 1 . . . . . . . . . . . . Level Access Points 1 | . 1 . . . . . . . . . . . . . . . . . . . . . . . . Branch Access Points 1 | . 1 . . . . . . . . . . . . . . . . . . . . . . . . Zone Layout 2 | . 1 . . . . . . . . . . . . . . . . . . . . . 1 . . Fabricator Hacks . | . . . . . . . . . . . . . . . . . . . . . . . . . . Repair Station Hacks . | . . . . . . . . . . . . . . . . . . . . . . . . . . Recycling Unit Hacks 1 | . . . . . . . . . . . . . . . . . . . . . . . . . 1 Retrieve Components 1 | . . . . . . . . . . . . . . . . . . . . . . . . . 1 Scanalyzer . | . . . . . . . . . . . . . . . . . . . . . . . . . . Garrison Access Hacks 1 | . . . . . . . 1 . . . . . . . . . . . . . . . . . . Unlock Access 1 | . . . . . . . 1 . . . . . . . . . . . . . . . . . . Unauthorized Hacks 9 | . 6 . 2 . . . . . . . . . . . . . 1 . . . . . . . . Terminals 9 | . 6 . 2 . . . . . . . . . . . . . 1 . . . . . . . . Track 3 | . 2 . 1 . . . . . . . . . . . . . . . . . . . . . . Botnet 6 | . 4 . 1 . . . . . . . . . . . . . 1 . . . . . . . . Fabricators . | . . . . . . . . . . . . . . . . . . . . . . . . . . Repair Stations . | . . . . . . . . . . . . . . . . . . . . . . . . . . Recycling Units . | . . . . . . . . . . . . . . . . . . . . . . . . . . Scanalyzers . | . . . . . . . . . . . . . . . . . . . . . . . . . . Garrison Access . | . . . . . . . . . . . . . . . . . . . . . . . . . . Data Cores Recovered . | . . . . . . . . . . . . . . . . . . . . . . . . . . Used . | . . . . . . . . . . . . . . . . . . . . . . . . . . Hacking Detections 12 | . 4 . 1 . . . . . . 3 . . . . . . 1 . . . . . 1 1 1 Full Trace Events . | . . . . . . . . . . . . . . . . . . . . . . . . . . Feedback Events . | . . . . . . . . . . . . . . . . . . . . . . . . . . Feedback Blocked . | . . . . . . . . . . . . . . . . . . . . . . . . . . Robot Schematics Acquired 8 | . . . . . . . . . . . . . . . 8 . . . . . . . . . . Robots Built . | . . . . . . . . . . . . . . . . . . . . . . . . . . Matter . | . . . . . . . . . . . . . . . . . . . . . . . . . . Time . | . . . . . . . . . . . . . . . . . . . . . . . . . . Total Robot Build Rating . | . . . . . . . . . . . . . . . . . . . . . . . . . . Part Schematics Acquired 6 | . . . . . . . . . . . . . . . 6 . . . . . . . . . . Parts Built . | . . . . . . . . . . . . . . . . . . . . . . . . . . Matter . | . . . . . . . . . . . . . . . . . . . . . . . . . . Time . | . . . . . . . . . . . . . . . . . . . . . . . . . . Total Part Build Rating . | . . . . . . . . . . . . . . . . . . . . . . . . . . Parts Repaired . | . . . . . . . . . . . . . . . . . . . . . . . . . . Time . | . . . . . . . . . . . . . . . . . . . . . . . . . . Parts Recycled . | . . . . . . . . . . . . . . . . . . . . . . . . . . Recycled Matter . | . . . . . . . . . . . . . . . . . . . . . . . . . . Retrieved Matter . | . . . . . . . . . . . . . . . . . . . . . . . . . . Retrieved Components 10 | . . . . . . . . . . . . . . . . . . . . . . . . . 10 Parts Scanalyzed . | . . . . . . . . . . . . . . . . . . . . . . . . . . Part Schematics Acquired . | . . . . . . . . . . . . . . . . . . . . . . . . . . Parts Damaged . | . . . . . . . . . . . . . . . . . . . . . . . . . . Bothacking | -11 -10 -10 -9 -9 -9 -8 -8 -8 -8 -7 -7 -7 -7 -7 -7 -6 -6 -6 -6 -6 -5 -5 -4 -3 -2 ------------ Run | Scr Mat Min Mat Min Exi Min Mat Gar Mat Fac Was Fac Low Low Dat Pro Fac Low Low Zio Pro Fac Fac Res Res Used RIF Installer 1 | . . . . . . . . 1 . . . . . . . . . . . . . . . . . Robots Hacked 2 | . . . . . . . . . . 2 . . . . . . . . . . . . . . . Non-combat 2 | . . . . . . . . . . 2 . . . . . . . . . . . . . . . Combat . | . . . . . . . . . . . . . . . . . . . . . . . . . . Robot Hacks Applied 3 | . . . . . . . . . . 3 . . . . . . . . . . . . . . . purge_threat 1 | . . . . . . . . . . 1 . . . . . . . . . . . . . . . find_terminals 1 | . . . . . . . . . . 1 . . . . . . . . . . . . . . . block_reporting 1 | . . . . . . . . . . 1 . . . . . . . . . . . . . . . Relay Couplers Released 7 | . . . . . . . . 7 . . . . . . . . . . . . . . . . . Machine Destruction 7 | . . . . . . . . 7 . . . . . . . . . . . . . . . . . Attached 1 | . . . . . . . . . . 1 . . . . . . . . . . . . . . . Robots Rewired 2 | . . . . . . . . . . . . . 2 . . . . . . . . . . . . Allies Hacked . | . . . . . . . . . . . . . . . . . . . . . . . . . . Hacks Repelled . | . . . . . . . . . . . . . . . . . . . . . . . . . . Allies | -11 -10 -10 -9 -9 -9 -8 -8 -8 -8 -7 -7 -7 -7 -7 -7 -6 -6 -6 -6 -6 -5 -5 -4 -3 -2 -------- Run | Scr Mat Min Mat Min Exi Min Mat Gar Mat Fac Was Fac Low Low Dat Pro Fac Low Low Zio Pro Fac Fac Res Res Total Allies 3 | . . . . . . . . . . . . . 2 . . 1 . . . . . . . . . Largest Group 2 | . . . . . . . . . . . . . 2 . . 1 1 . . . . . . . . Highest-Rated Group 94 | . . . . . . . . . . . . . 46 . . 94 94 . . . . . . . . Highest-Rated Ally 94 | . . . . . . . . . . . . . 30 . . 94 94 . . . . . . . . Total Orders . | . . . . . . . . . . . . . . . . . . . . . . . . . . Ally Attacks 21 | . . . . . . . . . . . . . 5 . . 5 11 . . . . . . . . Total Damage 657 | . . . . . . . . . . . . . 90 . . 199 368 . . . . . . . . Kills 7 | . . . . . . . . . . . . . 2 . . 2 3 . . . . . . . . Allies Corrupted . | . . . . . . . . . . . . . . . . . . . . . . . . . . Allies Melted . | . . . . . . . . . . . . . . . . . . . . . . . . . . Intel | -11 -10 -10 -9 -9 -9 -8 -8 -8 -8 -7 -7 -7 -7 -7 -7 -6 -6 -6 -6 -6 -5 -5 -4 -3 -2 ------- Run | Scr Mat Min Mat Min Exi Min Mat Gar Mat Fac Was Fac Low Low Dat Pro Fac Low Low Zio Pro Fac Fac Res Res Robot Analysis Total . | . . . . . . . . . . . . . . . . . . . . . . . . . . Derelict Logs Recovered 8 | . . 1 . 1 . . . . . . . . . 1 . 1 . 1 . . 3 . . . . Drone Launches . | . . . . . . . . . . . . . . . . . . . . . . . . . . Drone Recoveries . | . . . . . . . . . . . . . . . . . . . . . . . . . . Exploration | -11 -10 -10 -9 -9 -9 -8 -8 -8 -8 -7 -7 -7 -7 -7 -7 -6 -6 -6 -6 -6 -5 -5 -4 -3 -2 ------------- Run | Scr Mat Min Mat Min Exi Min Mat Gar Mat Fac Was Fac Low Low Dat Pro Fac Low Low Zio Pro Fac Fac Res Res Turns Passed 18780 | 44 319 432 207 384 236 823 468 799 451 2231 238 958 746 385 76 597 590 747 356 78 817 2132 1285 723 2658 Spaces Moved 10687 | 41 338 276 151 128 254 559 267 247 133 1043 163 682 632 277 77 394 366 322 216 66 406 1245 880 376 1148 Core 206 | 1 . . . . . . . . . . . . . . . . . . . . 117 26 . . 62 Treads . | . . . . . . . . . . . . . . . . . . . . . . . . . . Legs 5888 | . . . . . . 165 267 247 133 1043 163 50 . . . . . 310 51 . 198 936 880 376 1069 Wheels 4576 | 40 338 276 151 128 254 394 . . . . . 632 632 277 77 394 366 12 165 66 91 283 . . . Hover 17 | . . . . . . . . . . . . . . . . . . . . . . . . . 17 Flight . | . . . . . . . . . . . . . . . . . . . . . . . . . . Fastest Speed 50 | 50 80 90 90 90 90 90 150 180 185 153 120 86 96 100 100 100 93 100 120 120 50 50 120 120 50 Average Speed 127 | 79 83 90 90 91 90 107 168 184 204 153 143 105 99 100 100 100 98 194 136 120 167 128 120 135 144 Slowest Speed 1200 | 80 90 90 90 110 90 150 210 210 210 185 270 210 100 100 100 110 110 210 210 120 300 180 150 150 1200 Overloaded Moves . | . . . . . . . . . . . . . . . . . . . . . . . . . . Propulsion Burnouts . | . . . . . . . . . . . . . . . . . . . . . . . . . . Robots Hopped . | . . . . . . . . . . . . . . . . . . . . . . . . . . Cave-ins Triggered . | . . . . . . . . . . . . . . . . . . . . . . . . . . Exploration Rate (%) 36 | 3 48 52 18 31 43 99 16 48 15 34 83 21 71 30 68 59 9 50 28 10 46 30 19 10 18 Regions Visited 25 Branch Regions 12 Pre-discovered Areas 4 | . . 1 . . . . . . . . . . . 1 1 . . . . . 1 . . . . Known Exits Taken 9 | . 1 1 1 1 1 1 1 . . . . . . . . . . 1 . . . 1 . . . Unknown Exits Taken 13 | 1 . . . . . . . . 1 . . 1 1 1 1 1 1 . 1 1 1 . 1 1 . Scrap Searched 21 | . . 1 . 1 . 2 . . . . . . 10 1 . 2 . 2 1 . 1 . . . . Spaces Dug 11 | . . . . . . . . . . . . . . . . . . . . . . 5 3 3 . Terrain Destroyed 427 | . . . . . . . . 7 2 18 . 6 9 . . . . . . . 3 143 54 18 167 Melee . | . . . . . . . . . . . . . . . . . . . . . . . . . . Projectile 150 | . . . . . . . . 7 2 18 . 6 9 . . . . . . . 3 23 17 18 47 AOE 277 | . . . . . . . . . . . . . . . . . . . . . . 120 37 . 120 Actions | -11 -10 -10 -9 -9 -9 -8 -8 -8 -8 -7 -7 -7 -7 -7 -7 -6 -6 -6 -6 -6 -5 -5 -4 -3 -2 --------- Run | Scr Mat Min Mat Min Exi Min Mat Gar Mat Fac Was Fac Low Low Dat Pro Fac Low Low Zio Pro Fac Fac Res Res Total 14833 | 49 375 448 212 378 263 731 283 562 277 1648 169 928 753 363 76 545 555 407 256 65 481 1676 1047 510 1776 Wait 2972 | . 30 161 42 238 . 141 . 269 118 474 . 182 51 72 . 122 137 47 27 . 12 312 87 82 368 Move 10663 | 40 337 275 150 127 253 558 266 246 132 1043 162 681 631 276 76 393 365 321 215 65 405 1244 879 375 1148 Hop . | . . . . . . . . . . . . . . . . . . . . . . . . . . Pick Up 121 | 3 5 2 5 2 1 2 5 11 6 23 . 5 1 . . . . . . . . 8 10 6 26 Fast Attach 144 | 6 1 . 1 . 2 2 3 . . . . 9 3 1 . 5 8 9 3 . 10 32 7 3 39 Attach 67 | . . 1 1 2 . 2 1 2 . 10 2 2 4 . . . . . . . 3 3 2 5 27 Detach 17 | . . 1 . . 1 . . . . 6 . 1 . . . . . . . . 3 2 . 2 1 Swap 56 | . 1 3 3 2 . 3 6 1 2 4 . 1 . 1 . . 7 1 1 . . 4 8 1 7 Drop 122 | . 1 . 5 . 6 2 2 9 4 11 4 8 2 2 . 1 7 5 1 . 1 16 20 3 12 Fire 602 | . . 5 5 7 . 21 . 14 15 66 1 39 51 11 . 24 23 24 9 . 35 55 34 33 130 Melee 30 | . . . . . . . . . . 1 . . . . . . . . . . 12 . . . 17 Ram . | . . . . . . . . . . . . . . . . . . . . . . . . . . Kick 1 | . . . . . . . . . . . . . . . . . . . . . . . . . 1 Crush . | . . . . . . . . . . . . . . . . . . . . . . . . . . Escape Stasis 28 | . . . . . . . . 10 . 10 . . . . . . 8 . . . . . . . . Rewire 10 | . . . . . . . . . . . . . 10 . . . . . . . . . . . . Trap . | . . . . . . . . . . . . . . . . . . . . . . . . . . Miscellaneous . | . . . . . . . . . . . . . . . . . . . . . . . . . . Route ------- -11/Scrapyard -10/Materials (discovered 5 exits: *Mat x3 / *Min x2) -10/Mines -9/Materials -9/Mines -9/Exiles -8/Mines (discovered 2 exits: *Mat x2) -8/Materials -8/Garrison -8/Materials -7/Factory -7/Waste -7/Factory -7/Lower Caves -7/Lower Caves -7/Data Miner -6/Proximity Caves -6/Factory -6/Lower Caves -6/Lower Caves (discovered 2 exits: [*Fac] / [*Zio]) -6/Zion -5/Proximity Caves -5/Factory (discovered 4 exits: *Fac x2 / Upp x2) -4/Factory -3/Research -2/Research History --------- Turn | Location | Event 11 | -11/Scrapyard | Discovered new exit (range 15) 45 | -11/Scrapyard | Entered Materials 84 | -10/Materials | Identified exit to Mines 84 | -10/Materials | Identified exit to Materials 305 | -10/Materials | Build established: Mutant 364 | -10/Materials | Entered Mines 364 | -10/Mines | Found a damaged Exp. Sensor Array with a note attached 369 | -10/Mines | Found Prototype Device 370 | -10/Mines | Identified Exp. Sensor Array 435 | -10/Mines | Learned Materials machine intel 436 | -10/Mines | Learned location of Storage (-9) 671 | -10/Mines | Discovered exit to Materials (range 6) 757 | -10/Mines | Assembled infested the area 796 | -10/Mines | Entered Materials 796 | -9/Materials | Evolved 2 slots: Utility x1, Weapon x1 797 | -9/Materials | Loaded intel: 56 machine locations 989 | -9/Materials | Discovered new exit (range 5) 991 | -9/Materials | Identified exit to Mines 1003 | -9/Materials | Entered Mines 1271 | -9/Mines | Build established: Skirmisher 1315 | -9/Mines | Identified exit to Exiles 1383 | -9/Mines | Deemed a non-threat by the Exiles lab entrance 1387 | -9/Mines | Entered Exiles 1409 | -9/Exiles | Met 8R-AWN 1425 | -9/Exiles | Met EX-HEX 1451 | -9/Exiles | Met EX-BIN 1465 | -9/Exiles | Aligned with FarCom system 1466 | -9/Exiles | Given EX-Vault access code 1514 | -9/Exiles | Opened EX-Vault 1524 | -9/Exiles | Found Prototype Device 1524 | -9/Exiles | Identified Chronowheel 1524 | -9/Exiles | Activated Chronowheel 1530 | -9/Exiles | Found Prototype Ballistic Gun 1553 | -9/Exiles | Warned to stay clear of 0b10 Research branches 1612 | -9/Exiles | Discovered new exit (range 14) 1622 | -9/Exiles | Identified exit to Mines 1623 | -9/Exiles | Left Exiles lab with XL Autogun Array 1623 | -9/Exiles | Entered Mines 2220 | -8/Mines | Lost 4 parts (1p2n1u) 2419 | -8/Mines | Discovered new exit (range 9) 2423 | -8/Mines | Discovered new exit (range 15) 2431 | -8/Mines | Identified exit to Materials 2446 | -8/Mines | Entered Materials 2446 | -8/Materials | Evolved 2 slots: Utility x1, Weapon x1 2781 | -8/Materials | Identified exit to Garrison 2914 | -8/Materials | Entered Garrison 2926 | -8/Garrison | Installed Relay Interface Framework 2994 | -8/Garrison | Triggered checkpoint 3050 | -8/Garrison | Garrison Relay disabled 3216 | -8/Garrison | Build established: Gunner 3224 | -8/Garrison | Triggered checkpoint 3564 | -8/Garrison | Triggered checkpoint 3600 | -8/Garrison | Triggered checkpoint 3626 | -8/Garrison | Garrison Relay disabled 3679 | -8/Garrison | Discovered new exit (range 14) 3713 | -8/Garrison | Entered Materials 3931 | -8/Materials | Build established: Hauler-Skirmisher 4149 | -8/Materials | Discovered new exit (range 9) 4164 | -8/Materials | Entered Factory 4164 | -7/Factory | Evolved 2 slots: Propulsion x1, Utility x1 4580 | -7/Factory | Identified XL Autogun Array 4604 | -7/Factory | Lost 3 parts (3w) 5157 | -7/Factory | Build established: Bothacker-Skirmisher 6395 | -7/Factory | Sucked down chute 6395 | -7/Factory | Entered Waste 6409 | -7/Waste | Spotted C-40 Crusher 6409 | -7/Waste | Spotted C-40 Crusher 6486 | -7/Waste | Spotted C-40 Crusher 6492 | -7/Waste | Spotted C-40 Crusher 6507 | -7/Waste | Spotted C-40 Crusher 6515 | -7/Waste | Spotted C-40 Crusher 6516 | -7/Waste | Crushed by Compactor (1 part destroyed, 1 dropped) 6523 | -7/Waste | Crushed by Compactor (0 parts destroyed, 1 dropped) 6531 | -7/Waste | Crushed by Compactor (1 part destroyed, 1 dropped) 6559 | -7/Waste | Discovered new exit (range 10) 6633 | -7/Waste | Entered Factory 6901 | -7/Factory | Garrison activated, responded to threat 6969 | -7/Factory | Build established: Tank 7575 | -7/Factory | Discovered new exit (range 15) 7591 | -7/Factory | Entered Lower Caves 7604 | -7/Lower Caves | Attracted the attention of an 0b10 outpost 7657 | -7/Lower Caves | Destroyed 11 combat bots 7909 | -7/Lower Caves | Ambushed by wild Derelicts 8131 | -7/Lower Caves | Encountered a Warlord checkpoint 8218 | -7/Lower Caves | Build established: Scavenger-Tank 8322 | -7/Lower Caves | Discovered new exit (range 8) 8337 | -7/Lower Caves | Entered another Lower Caves area 8696 | -7/Lower Caves | Discovered new exit (range 5) 8722 | -7/Lower Caves | Entered Data Miner 8722 | -7/Data Miner | Discovered new exit (range 6) 8741 | -7/Data Miner | Met Data Miner 8758 | -7/Data Miner | Learned location of Section 7 (-2) 8758 | -7/Data Miner | Acquired the access code to Warlord's prototype stash 8774 | -7/Data Miner | Received God Mode back door access code from Data Miner 8798 | -7/Data Miner | Entered Proximity Caves 8864 | -6/Proximity Caves | Core integrity fell below 50% 8915 | -6/Proximity Caves | Escorted by Enhanced Grunt 9141 | -6/Proximity Caves | Build established: Scavenger-Gunner 9378 | -6/Proximity Caves | Discovered new exit (range 6) 9395 | -6/Proximity Caves | Entered Factory 9395 | -6/Factory | Accompanied by 1 ally 9395 | -6/Factory | Evolved 2 slots: Power x1, Utility x1 9915 | -6/Factory | Discovered new exit (range 8) 9985 | -6/Factory | Entered Lower Caves 10082 | -6/Lower Caves | Lost 7 parts (1p2n1u3w) 10426 | -6/Lower Caves | Identified exit to Lower Caves 10586 | -6/Lower Caves | Spotted B-75 Beast 10732 | -6/Lower Caves | Entered another Lower Caves area 10749 | -6/Lower Caves | Discovered new exit (range 15) 11057 | -6/Lower Caves | Discovered new exit (range 8) 11088 | -6/Lower Caves | Entered Zion 11105 | -6/Zion | Given A8's code to call for help 11126 | -6/Zion | System corruption cleaned by Quarantine Array 11130 | -6/Zion | RIF detected upon attempting to enter Zion 11130 | -6/Zion | Attacked by Zionites 11130 | -6/Zion | Spotted YB-0B9(B) 11130 | -6/Zion | Spotted BA-3U9(B) 11154 | -6/Zion | Discovered new exit (range 11) 11166 | -6/Zion | Entered Proximity Caves 11174 | -5/Proximity Caves | Build established: Scavenger-Mutant 11421 | -5/Proximity Caves | Lost 9 parts (1p3n3u2w) 11726 | -5/Proximity Caves | Learned location of 2 exits from Factory 11746 | -5/Proximity Caves | Core integrity fell below 50% 11779 | -5/Proximity Caves | Learned 4 Factory zone layouts 11794 | -5/Proximity Caves | Lost 4 parts (1p1u2w) 11975 | -5/Proximity Caves | Discovered new exit (range 7) 11983 | -5/Proximity Caves | Entered Factory 11983 | -5/Factory | Evolved 2 slots: Propulsion x1, Utility x1 11984 | -5/Factory | Identified exit to Upper Caves 11985 | -5/Factory | Identified exit to Factory 12061 | -5/Factory | Lost 5 parts (1u4w) 12670 | -5/Factory | Build established: Scavenger-Tank 13521 | -5/Factory | First assault squad dispatched 13548 | -5/Factory | Incoming assault squad redirected 13656 | -5/Factory | Discovered exit to Factory (range 15) 13851 | -5/Factory | System corruption reached 10% 14053 | -5/Factory | Build established: Tank 14115 | -5/Factory | Entered another Factory area 14115 | -4/Factory | Evolved 2 slots: Utility x2 14885 | -4/Factory | Garrison activated, responded to threat 14910 | -4/Factory | First assault squad dispatched 14938 | -4/Factory | Incoming assault squad redirected 15050 | -4/Factory | Discovered new exit (range 4) 15400 | -4/Factory | Entered Research 15400 | -3/Research | Evolved 2 slots: Utility x1, Weapon x1 15724 | -3/Research | Garrison activated, responded to threat 15981 | -3/Research | Discovered new exit (range 6) 16023 | -3/Research | Incoming investigation squad redirected 16123 | -3/Research | Entered another Research area 16123 | -2/Research | Evolved 2 slots: Utility x1, Weapon x1 16430 | -2/Research | Build established: Executioner 16702 | -2/Research | Destroyed 8 combat bots 16709 | -2/Research | Lost 12 parts (1p4n2u5w) 16902 | -2/Research | Lost 3 parts (1p1u1w) 16902 | -2/Research | System corruption reached 10% 17096 | -2/Research | Found Prototype Launcher 17096 | -2/Research | Identified Gui. Micro-nuke Launcher 17227 | -2/Research | Build established: Scavenger-Gunner 17793 | -2/Research | Lost 12 parts (1p4n4u3w) 18130 | -2/Research | Found Prototype Slashing Weapon 18130 | -2/Research | Identified Centrium Greatsword 18134 | -2/Research | Found Centrium Greatsword 18260 | -2/Research | Lost 3 parts (1n1u1w) 18481 | -2/Research | Lost 3 parts (1p2w) 18664 | -2/Research | System corruption reached 30% 18701 | -2/Research | Core integrity fell below 50% 18754 | -2/Research | Spotted B-90 Cyclops 18757 | -2/Research | Core integrity fell below 20% 18781 | -2/Research | Destroyed by S-43 Plague with Heavy Machine Gun Last Messages --------------- 18743_ Acquired Micro-nuke Launcher. 18744_ K-01 Serf collects debris. 18745_ P-80 Master resets P-80 Master, system corruption cleaned. 18747_ Lgt. Particle Reactor destroyed. 18748_ Imp. Antigrav System destroyed. 18748_ System corrupted: Micro-nuke Launcher targeting data glitched. 18751_ Micro-nuke Launcher destroyed. 18751_ System corrupted: Micro-nuke Launcher targeting data glitched. 18751_ K-01 Serf destroyed. 18751_ Micro-nuke Launcher destroyed. 18753_ Adv. Heat Sink destroyed. 18755_ System corrupted: Matter fused (-9). 18755_ U-05 Engineer lays Concrete. 18756_ The unstable cave ceiling collapses. 18756_ U-05 Engineer lays Concrete. 18760_ Acquired 59 matter. 18768_ Reaction Chamber disabled. 18770_ /#VDQF2>URQGX49JZPC7FSE [Achievement: Punisher] [Achievement: Overachiever] Map ----- +----------------------------------------------------+ | ??????????????????????# # #?## #??? | | ??????????????????????#"" # #########/####### | | ??????????????????????#""" # ] | | ??????????????????????#"R + | | ??????????????????????#""" # | | ??????????????????????#"" ## !] [ | | ??????????????????????# ## ] | | ??????????????????????# = ## | | ??????????????????????########### "" | | ????????????????????????????????# BB """ | | ????????????????????????????????# BB """ | | ????????????????????????????????# g | | ???????????????????#####????????# | | ???????????????????# ????????# | | ???????????????????# ???????## "#########+## | | ???????????????????# ???????#" #???????????? | | ???????????????????# ! ???????## #???????????? | | ???????????????????# ????????# #???????????? | | ???????????????????# ????????# #???????????? | | ???????????????????? ?s??????#p #???????????? | | ?????????????????????? s??????## ##??????????? | | ??????????????????????##s########p #??????????? | | ??????????????????????# s "" #??????????? | | ??????????????????????# T #??????????? | | ??????????????????????# #??????????? | | ??????????????????????+ @###+### ! #??????????? | | ??????????????????????# ## #######??????????? | | ??????????????????????# ## #????????????????? | | ??????????????????????# ## #????????????????? | | ??????????????????????# ## #????????????????? | | ??????????????????????# ## #????????????????? | | ??????????????????????# ## #????????????????? | | ??????????????????????# ## ! #????????????????? | | ??????????????????????# ## #????????????????? | | ??????????????????????# ?######????????????????? | | ??????????????????????# ???????????????????????? | | ??????????????????????# ???????????????????????? | | ??????????????????????# ???????????????????????? | | ??????????????????????# ???????????????????????? | | ??????????????????????+ ???????????????????????? | | ??????????????????????? ???????????????????????? | | ?????????????????????????????????????????????????? | | ?????????????????????????????????????????????????? | | ?????????????????????????????????????????????????? | | ?????????????????????????????????????????????????? | | ?????????????????????????????????????????????????? | | ?????????????????????????????????????????????????? | | ?????????????????????????????????????????????????? | | ?????????????????????????????????????????????????? | | ?????????????????????????????????????????????????? | +----------------------------------------------------+ Best States ------------- Heat Dissipation 99 Energy Generation 54 Energy Capacity 1380 Matter Stores 300 Matter Capacity 300 Sight Range 16 Robot Scan Range 30 Terrain Scan Density 10 Power Amplification 30 Armor Coverage 1125 Resistance: KI 30 Resistance: TH 30 Weapon Cycling 15 Phase Shifting 15 Evasion (%) 55 Targeting Accuracy 30 Target Analysis 8 Kinecelleration 30 Item Schematics ----------------- Combat Drone Bay | -7/Data Miner | Free Lgt. Regenerative Plating | -7/Data Miner | Free Exp. Sensor Array | -7/Data Miner | Free Exp. Terrain Scanner | -7/Data Miner | Free Cloaking Device | -7/Data Miner | Free Kinetic Spear | -7/Data Miner | Free Robot Schematics ------------------ S-27 Virus | -7/Data Miner | Free G-50 Soldier | -7/Data Miner | Free G-67 Veteran | -7/Data Miner | Free L-41 Fighter | -7/Data Miner | Free X-72 Disruptor | -7/Data Miner | Free I-36 Angel | -7/Data Miner | Free P-70 Sage | -7/Data Miner | Free I-47 Archangel | -7/Data Miner | Free Fabricated ------------ Nothing Alien Tech Used ----------------- None Achievements -------------- Overachiever Punisher Challenges ------------ None Game ------ Seed TargetTransdimensionalCannon Manual? 0 Play Time 02:05:28 Cumulative 125.1 hours Start 2020.07.31 @ 22:16:58 End 2020.08.03 @ 19:55:20 Sessions 4 Manual Loads 0 Difficulty Rogue Special Mode None Game No. 175 Rogue 132 Adventurer 3 Explorer 40 Win Type - Total 2 Types 1/1/0/0/0/0/0 Lore% 50 Gallery% 71 Achievement% 50 Wizard Run 0 Options --------- ASCII 0 Keyboard 0 Movement Mouse Keybinds 0 Fullscreen 2 Font 18/SmallcapsGlow Map View 76x50 Tactical HUD 1 Map Filters NONE Filters NONE Steam 1 RUN: aebd9902-68f9-4153-bccb-9b5935fdc6b0